bitfinex/quotes_ETHUSD_20250112
["timestamp","ask_amount","ask_price","bid_price","bid_amount"]
[1736683522041,0.13502178,3254.7,3254.1,2.15112]
[1736683522456,0.13502178,3254.7,3254.1,2.18184657]
[1736683522655,0.13502178,3254.7,3254.2,2.9423]
[1736683522860,2.05020841,3254.9,3254.3,2.18171468]
[1736683523028,0.13503497,3254.6,3254.3,2.15099]
[1736683523229,2.05020841,3254.9,3254.3,2.15099]
[1736683523564,2.05020841,3254.9,3254.3,2.18171468]
[1736683523722,0.13502838,3254.8,3254.3,2.18171468]
[1736683526547,0.13502838,3254.8,3254.4,0.62294576]
[1736683527296,0.13502838,3254.8,3254.5,0.7815]
[1736683527644,1.28870841,3255.0,3254.5,0.7815]
[1736683527893,0.13508774,3254.7,3254.5,0.7815]
[1736683528191,0.13508774,3254.6,3254.5,0.7815]
[1736683528491,1.28870841,3255.0,3254.5,0.7815]
[1736683528689,0.13508774,3254.6,3254.5,0.7815]
[1736683529305,1.28870841,3255.0,3254.5,0.7815]
[1736683529461,0.13508774,3254.6,3254.5,0.7815]
[1736683529698,1.28870841,3255.0,3254.5,0.7815]
[1736683529887,0.13508774,3254.6,3254.5,0.7815]
[1736683530487,1.28870841,3255.0,3254.5,0.7815]
[1736683530673,0.13508774,3254.6,3254.5,0.7815]
[1736683530837,1.28870841,3255.0,3254.5,1.14011495]
[1736683531041,1.28870841,3255.0,3254.5,0.7815]
[1736683531340,0.13508774,3254.9,3254.5,0.7815]
[1736683532206,0.17435576,3254.9,3254.5,0.7815]
[1736683532796,0.17435576,3254.9,3254.6,0.03072377]
[1736683532945,1.28870841,3255.1,3254.7,0.7688]
[1736683533145,0.17438216,3255.0,3254.7,0.7688]
[1736683533490,0.17438216,3255.0,3254.8,0.7688]
[1736683534396,0.55,3255.4,3254.8,0.7688]
[1736683534693,0.17442836,3254.9,3254.8,0.7688]
[1736683534898,0.55,3255.4,3254.8,0.7688]
[1736683535046,0.17442836,3254.9,3254.8,0.7688]
[1736683535361,0.17459989,3254.9,3254.8,0.7688]
[1736683535560,0.55,3255.4,3254.8,0.7688]
[1736683535805,0.55,3255.2,3254.8,0.7688]
[1736683536258,0.55,3255.3,3254.8,0.7688]
[1736683536460,0.17459989,3255.1,3254.8,0.7688]
[1736683536695,0.55,3255.4,3254.8,0.7688]
[1736683536846,0.17459989,3255.0,3254.8,0.7688]
[1736683537046,0.55,3255.4,3254.8,0.7688]
[1736683537317,0.17459989,3254.9,3254.8,0.7688]
[1736683537500,0.55,3255.4,3254.8,0.7688]
[1736683538025,0.17459989,3255.3,3254.8,0.7688]
[1736683546989,0.55,3255.2,3254.8,0.7688]
[1736683547435,0.55,3255.4,3254.8,0.7688]
[1736683547631,0.17459989,3255.1,3254.8,0.7688]
[1736683547789,0.896484,3255.4,3254.8,0.7688]
[1736683547987,0.17459989,3255.0,3254.8,0.7688]
[1736683548240,0.55,3255.4,3254.8,0.7688]
[1736683548446,0.17459989,3254.9,3254.8,0.7688]
[1736683548938,0.55,3255.4,3254.8,0.7688]
[1736683549141,0.17459989,3254.9,3254.8,0.7688]
[1736683549343,0.55,3255.4,3254.8,0.7688]
[1736683549540,0.17446136,3254.9,3254.8,0.7688]
[1736683549747,0.55,3255.4,3254.8,0.7688]
[1736683549892,0.17446136,3254.9,3254.8,0.7688]
[1736683550246,0.55,3255.4,3254.8,1.060752]
[1736683550394,0.17446136,3254.9,3254.8,0.7688]
[1736683550748,0.55,3255.4,3254.8,0.7688]
[1736683550891,0.17446136,3254.9,3254.8,0.7688]
[1736683551091,0.55,3255.4,3254.8,0.7688]
[1736683551312,0.17446136,3254.9,3254.8,0.7688]
[1736683551994,0.55,3255.4,3254.8,0.7688]
[1736683552197,0.17446136,3254.9,3254.8,0.7688]
[1736683552509,0.55,3255.4,3254.8,0.7688]
[1736683553042,0.55,3255.2,3254.8,0.7688]
[1736683553546,0.55,3255.4,3254.8,0.7688]
[1736683553728,0.17446136,3255.1,3254.8,0.7688]
[1736683554049,0.55,3255.4,3254.8,0.7688]
[1736683554050,0.17446136,3255.0,3254.8,0.7688]
[1736683554538,0.55,3255.4,3254.8,0.7688]
[1736683554748,0.17446136,3254.9,3254.8,0.7688]
[1736683554924,0.55,3255.4,3254.8,3.211402]
[1736683555128,0.17446136,3254.9,3254.8,2.91945]
[1736683555426,0.55,3255.4,3254.8,2.91945]
[1736683555597,0.17446136,3254.9,3254.8,2.91945]
[1736683555932,0.55,3255.4,3254.8,2.91945]
[1736683556233,0.17446136,3255.3,3254.8,2.91945]
[1736683556536,0.55,3255.2,3254.8,2.91945]
[1736683556905,0.55,3255.4,3254.8,2.91945]
[1736683557325,0.55,3255.2,3254.8,2.91945]
[1736683557693,0.55,3255.4,3254.8,2.91945]
[1736683558203,0.17446136,3255.3,3254.8,2.91945]
[1736683558539,0.55,3255.2,3254.9,0.6203344]
[1736683558923,0.55,3255.4,3254.9,0.6203344]
[1736683559107,0.17446136,3255.1,3254.9,0.6203344]
[1736683559309,0.55,3255.4,3254.9,0.6203344]
[1736683559531,0.17446136,3255.0,3254.9,0.6203344]
[1736683559873,0.55,3255.4,3254.9,0.6203344]
[1736683560040,0.7572,3255.5,3254.9,0.6203344]
[1736683560348,1.28870841,3255.8,3255.2,2.15039]
[1736683560506,0.20971084,3255.7,3255.3,0.7548]
[1736683561227,0.55,3255.8,3255.3,0.7548]
[1736683565396,0.55,3255.8,3255.0,2.91261]
[1736683566849,0.55,3255.4,3254.7,0.7621]
[1736683567929,0.55,3255.4,3254.7,2.91282]
[1736683568335,0.55,3255.4,3254.8,0.61165842]
[1736683568529,0.55,3255.2,3254.8,0.61165842]
[1736683569151,0.17457353,3255.1,3254.8,0.61165842]
[1736683569507,0.55,3255.4,3254.8,0.61165842]
[1736683569913,0.55,3255.2,3254.8,0.61165842]
[1736683570121,0.55,3255.2,3254.8,0.9671784]
[1736683570319,0.55,3255.4,3254.8,0.9671784]
[1736683570518,0.17457353,3255.1,3254.8,0.61165842]
[1736683570704,0.55,3255.4,3254.8,0.61165842]
[1736683570901,0.17457353,3255.0,3254.8,0.61165842]
[1736683571179,0.55,3255.4,3254.8,0.61165842]
[1736683571746,0.55,3255.2,3254.8,0.61165842]
[1736683572103,0.55,3255.4,3254.8,0.61165842]
[1736683572331,0.17457353,3255.1,3254.8,0.61165842]
[1736683572544,0.55,3255.4,3254.8,0.9671784]
[1736683572763,0.55,3255.4,3254.8,0.61165842]
[1736683573056,0.55,3255.2,3254.8,0.61165842]
[1736683573416,0.55,3255.4,3254.8,0.61165842]
[1736683573621,0.17457353,3255.3,3254.8,0.61165842]
[1736683573835,0.55,3255.2,3254.8,0.61165842]
[1736683574325,0.17457353,3255.1,3254.8,0.61165842]
[1736683574861,0.55,3255.4,3254.8,0.61165842]
[1736683575077,0.17457353,3255.0,3254.8,0.61165842]
[1736683575277,0.55,3255.4,3254.8,0.61165842]
[1736683575474,0.17457353,3254.9,3254.8,0.61165842]
[1736683575681,0.55,3255.4,3254.8,0.61165842]
[1736683575848,0.17457353,3254.9,3254.8,0.61165842]
[1736683576040,0.55,3255.4,3254.8,0.61165842]
[1736683576375,0.17457353,3254.9,3254.8,0.61165842]
[1736683576535,0.55,3255.4,3254.8,0.61165842]
[1736683576961,0.55,3255.2,3254.8,0.61165842]
[1736683577276,0.55,3255.4,3254.8,0.61165842]
[1736683577492,0.17450753,3255.1,3254.8,0.61165842]
[1736683577697,0.55,3255.4,3254.8,0.61165842]
[1736683577870,0.17450753,3255.0,3254.8,0.61165842]
[1736683578194,0.55,3255.4,3254.8,0.61165842]
[1736683578383,0.17450753,3254.9,3254.7,2.15072]
[1736683578586,0.55,3255.2,3254.7,2.365792]
[1736683578900,0.55,3255.2,3254.7,2.91282]
[1736683579099,0.17450753,3255.1,3254.7,2.91282]
[1736683580900,0.17450753,3255.1,3254.6,0.6130518]
[1736683581203,0.7966,3255.0,3254.6,0.6130518]
[1736683581507,0.1746329,3254.9,3254.6,0.6130518]
[1736683582955,0.1746329,3254.9,3254.6,2.7638418]
[1736683585731,0.1746329,3254.9,3254.6,0.6130518]
[1736683586275,0.1746329,3254.9,3254.5,0.7621]
[1736683586865,0.1746329,3254.9,3254.5,2.91295]
[1736683588228,0.1746329,3254.9,3254.5,3.52156376]
[1736683588430,0.1746329,3254.9,3254.3,5.37]
[1736683588769,1.3106,3254.8,3253.9,2.93043]
[1736683588979,0.55,3254.6,3253.9,2.93043]
[1736683589314,0.55,3254.4,3254.0,0.60781368]
[1736683589515,0.7606,3254.3,3254.0,0.60781368]
[1736683589855,0.7606,3254.3,3253.2,3.0]
[1736683589856,0.72444817,3254.2,3253.6,0.7792]
[1736683590454,0.72444817,3254.2,3253.6,2.93065]
[1736683591274,0.72444817,3254.2,3253.6,0.62487305]
[1736683592173,1.08804599,3254.2,3253.6,0.62487305]
[1736683595286,0.72444817,3254.2,3253.6,0.62487305]
[1736683595593,0.55,3254.0,3253.6,0.62487305]
[1736683595944,0.17409833,3253.9,3253.6,0.62487305]
[1736683602314,0.17409833,3253.9,3253.3,2.93085]
[1736683603122,0.55,3254.0,3253.3,2.93085]
[1736683603268,0.8099,3253.6,3253.3,0.61249614]
[1736683603670,0.17310822,3253.5,3253.3,0.61249614]
[1736683604419,0.55,3253.7,3253.3,0.61249614]
[1736683604570,0.17310822,3253.4,3253.3,0.61249614]
[1736683604765,0.55,3253.7,3253.3,0.61249614]
[1736683604976,0.17310822,3253.4,3253.3,0.61249614]
[1736683605209,0.55,3253.7,3253.3,0.61249614]
[1736683605418,0.17310822,3253.4,3253.3,0.61249614]
[1736683605616,0.55,3253.7,3253.3,0.61249614]
[1736683605915,0.55,3253.7,3253.1,0.005]
[1736683606123,0.17310822,3253.6,3253.1,0.005]
[1736683606684,0.17310822,3253.6,3253.1,0.60746748]
[1736683613138,0.17310822,3253.6,3253.1,2.75922748]
[1736683613441,0.17310822,3253.6,3253.1,3.11641392]
[1736683617446,0.7855,3253.5,3253.1,0.96465392]
[1736683617945,0.17294316,3253.4,3253.1,0.96465392]
[1736683618155,0.17294316,3253.4,3253.1,0.005]
[1736683620397,0.17294316,3253.4,3253.1,0.61224532]
[1736683620634,0.17294316,3253.4,3253.1,2.76403532]
[1736683621046,1.3355,3253.7,3253.1,2.76403532]
[1736683621251,0.17282427,3253.3,3253.1,2.76403532]
[1736683621564,1.3355,3253.7,3253.2,2.96242]
[1736683621850,0.7831,3253.9,3253.3,2.15164]
[1736683622047,0.55,3253.8,3253.3,2.15164]
[1736683622236,3.0,3254.3,3253.2,0.84143666]
[1736683622237,0.7831,3254.1,3253.5,2.15147]
[1736683622631,0.7831,3254.1,3253.6,2.15143]
[1736683624470,0.7831,3254.1,3253.5,0.8309]
[1736683624753,0.7831,3254.1,3253.5,2.98242]
[1736683627756,0.7831,3254.1,3253.6,0.61908601]
[1736683628562,0.16893951,3254.0,3253.6,0.61908601]
[1736683629821,0.16893951,3254.0,3253.5,2.98242]
[1736683630023,0.16893951,3254.0,3253.4,0.60246377]
[1736683630259,1.3425,3253.9,3253.1,2.15676]
[1736683630456,0.7925,3253.7,3253.1,0.005]
[1736683631007,0.16299192,3253.6,3253.1,0.62396288]
[1736683631552,1.3425,3253.5,3253.1,0.62396288]
[1736683631758,1.50545886,3253.5,3253.1,0.62396288]
[1736683634140,1.50545886,3253.5,3253.1,0.005]
[1736683635746,0.7925,3253.4,3253.1,0.005]
[1736683635948,0.95510151,3253.4,3253.1,0.005]
[1736683639966,1.32075966,3253.4,3253.1,0.005]
[1736683640164,0.7925,3253.2,3253.1,0.005]
[1736683640811,1.50493606,3253.2,3253.1,0.005]
[1736683644634,3.64385606,3253.2,3253.1,0.005]
[1736683646354,6.64385606,3253.2,3253.1,0.005]
[1736683646716,7.34480748,3253.2,3253.1,0.005]
[1736683647383,7.36730748,3253.2,3253.1,0.005]
[1736683647585,7.35980748,3253.2,3253.1,0.005]
[1736683648987,8.64851589,3253.2,3253.1,0.005]
[1736683649922,8.65601589,3253.2,3253.1,0.005]
[1736683650127,13.96601589,3253.2,3253.1,0.005]
[1736683650687,12.67730748,3253.2,3253.1,0.005]
[1736683652786,14.6103701,3253.2,3253.1,0.005]
[1736683653435,15.22806461,3253.2,3253.1,0.005]
[1736683653802,13.29500199,3253.2,3253.1,0.005]
[1736683654560,15.22806461,3253.2,3253.1,0.005]
[1736683654710,14.6103701,3253.2,3253.1,0.005]
[1736683655538,12.67730748,3253.2,3253.1,0.005]
[1736683656585,13.96242136,3253.2,3253.1,0.005]
[1736683659306,12.67730748,3253.2,3253.1,0.005]
[1736683666000,12.66980748,3253.2,3253.1,0.005]
[1736683667907,12.87980748,3253.2,3253.1,0.005]
[1736683677245,14.16492136,3253.2,3253.1,0.005]
[1736683678139,13.95492136,3253.2,3253.1,0.005]
[1736683678308,14.16492136,3253.2,3253.1,0.005]
[1736683678924,13.95492136,3253.2,3253.1,0.005]
[1736683679131,14.16492136,3253.2,3253.1,0.005]
[1736683679643,11.19665606,3253.2,3253.1,0.005]
[1736683679822,11.39165606,3253.2,3253.1,0.005]
[1736683684715,11.40665606,3253.2,3253.1,0.005]
[1736683685047,12.17685606,3253.2,3253.1,0.005]
[1736683685941,14.10991868,3253.2,3253.1,0.005]
[1736683686143,15.78615223,3253.2,3253.1,0.005]
[1736683686801,18.56206862,3253.2,3253.1,0.005]
[1736683687748,19.20642283,3253.2,3253.1,0.005]
[1736683688591,22.51569631,3253.2,3253.1,0.005]
[1736683691515,23.11844548,3253.2,3253.1,0.005]
[1736683691717,23.36844548,3253.2,3253.1,0.005]
[1736683692460,19.75232023,3253.2,3253.1,1e-05]
[1736683695220,17.88957106,3253.2,3253.1,1e-05]
[1736683695416,16.43083751,3253.2,3253.1,1e-05]
[1736683695938,20.63873203,3253.2,3253.1,1e-05]
[1736683696107,20.84873203,3253.2,3253.1,1e-05]
[1736683696959,17.53948728,3253.2,3253.1,1e-05]
[1736683697616,14.31591824,3253.2,3253.1,1e-05]
[1736683698342,14.56591824,3253.2,3253.1,1e-05]
[1736683698822,17.80591824,3253.2,3253.1,1e-05]
[1736683699026,14.56591824,3253.2,3253.1,1e-05]
[1736683699357,17.23112478,3253.2,3253.1,1e-05]
[1736683700010,21.09892395,3253.2,3253.1,1e-05]
[1736683700707,17.23112478,3253.2,3253.1,1e-05]
[1736683702815,21.09844495,3253.2,3253.1,1e-05]
[1736683703658,17.23112478,3253.2,3253.1,1e-05]
[1736683705469,21.09717186,3253.2,3253.1,1e-05]
[1736683706659,20.84717186,3253.2,3253.1,1e-05]
[1736683707813,16.98112478,3253.2,3253.1,1e-05]
[1736683709015,20.22112478,3253.2,3253.1,1e-05]
[1736683709314,16.98112478,3253.2,3253.1,1e-05]
[1736683713981,20.84717186,3253.2,3253.1,1e-05]
[1736683717991,20.63717186,3253.2,3253.1,1e-05]
[1736683718321,20.84717186,3253.2,3253.1,1e-05]
[1736683718496,19.86697186,3253.2,3253.1,1e-05]
[1736683718796,16.21092478,3253.2,3253.1,1e-05]
[1736683719459,13.54571824,3253.2,3253.1,1e-05]
[1736683720282,9.78571824,3253.2,3253.1,1e-05]
[1736683720468,9.97321824,3253.2,3253.1,0.82951]
[1736683720837,12.97321824,3253.2,3253.1,0.82951]
[1736683721580,13.52321824,3253.2,3253.1,0.82951]
[1736683722134,13.32518691,3253.2,3253.1,0.82951]
[1736683723528,13.11518691,3253.2,3253.1,0.82951]
[1736683724849,11.18165606,3253.2,3253.1,0.82951]
[1736683726383,11.17415606,3253.2,3253.1,0.82951]
[1736683726737,11.18165606,3253.2,3253.1,0.82951]
[1736683727491,12.47038252,3253.2,3253.1,0.82951]
[1736683727781,14.08320851,3253.2,3253.1,1e-05]
[1736683728337,12.49288252,3253.2,3253.1,1e-05]
[1736683728654,12.47038252,3253.2,3253.1,0.75861]
[1736683728854,13.31257864,3253.2,3253.1,0.75861]
[1736683729783,13.11466366,3253.2,3253.1,0.75861]
[1736683734157,13.31316547,3253.2,3253.1,0.75861]
[1736683735069,11.18165606,3253.2,3253.1,0.75861]
[1736683735475,13.36312897,3253.2,3253.1,1e-05]
[1736683735838,14.5268288,3253.2,3253.1,1e-05]
[1736683736734,17.3029275,3253.2,3253.1,1e-05]
[1736683737846,17.3104275,3253.2,3253.1,1e-05]
[1736683742296,14.73235449,3253.2,3253.1,1e-05]
[1736683743974,17.3104275,3253.2,3253.1,1e-05]
[1736683744703,14.73235449,3253.2,3253.1,1e-05]
[1736683745059,13.32038158,3253.2,3253.1,1e-05]
[1736683745401,13.32038158,3253.2,3253.1,0.77841]
[1736683745901,13.53038158,3253.2,3253.1,0.77841]
[1736683746208,13.52288158,3253.2,3253.1,0.77841]
[1736683746504,12.68144286,3253.2,3253.1,0.77841]
[1736683748040,4.66222286,3253.2,3253.1,0.77841]
[1736683748182,4.45222286,3253.2,3253.1,0.77841]
[1736683748382,5.00222286,3253.2,3253.1,0.77841]
[1736683749018,3.71243606,3253.2,3253.1,0.77841]
[1736683751927,6.60804435,3253.2,3253.1,0.77841]
[1736683752083,6.60804435,3253.2,3253.1,1e-05]
[1736683752283,6.81804435,3253.2,3253.1,1e-05]
[1736683753631,8.75272455,3253.2,3253.1,1e-05]
[1736683754425,6.81804435,3253.2,3253.1,1e-05]
[1736683755932,8.75272455,3253.2,3253.1,1e-05]
[1736683756789,6.08165606,3253.2,3253.1,1e-05]
[1736683759433,8.01633626,3253.2,3253.1,1e-05]
[1736683760474,6.08165606,3253.2,3253.1,1e-05]
[1736683761929,8.01633626,3253.2,3253.1,1e-05]
[1736683764474,7.80633626,3253.2,3253.1,1e-05]
[1736683764632,8.21694853,3253.2,3253.1,1e-05]
[1736683765846,9.61870981,3253.2,3253.1,1e-05]
[1736683766177,10.44820981,3253.2,3253.1,1e-05]
[1736683766536,13.02628282,3253.2,3253.1,1e-05]
[1736683767176,13.03378282,3253.2,3253.1,1e-05]
[1736683767392,10.45570981,3253.2,3253.1,1e-05]
[1736683768165,13.67830108,3253.2,3253.1,1e-05]
[1736683769201,18.98830108,3253.2,3253.1,1e-05]
[1736683770098,15.76570981,3253.2,3253.1,1e-05]
[1736683771096,18.43511425,3253.2,3253.1,1e-05]
[1736683771592,15.44385297,3253.2,3253.1,1e-05]
[1736683771793,12.98444853,3253.2,3253.1,1e-05]
[1736683771978,12.98444853,3253.2,3253.1,0.81841]
[1736683772672,13.33616261,3253.2,3253.1,0.81841]
[1736683772885,13.32866261,3253.2,3253.1,0.81841]
[1736683774264,3.71243606,3253.2,3253.1,0.81841]
[1736683774572,3.16243606,3253.2,3253.1,0.81841]
[1736683775307,5.00365117,3253.2,3253.1,0.81841]
[1736683776011,3.71243606,3253.2,3253.1,0.81841]
[1736683780336,3.16243606,3253.2,3253.1,0.81841]
[1736683780500,0.16243606,3253.2,3253.1,0.81841]
[1736683780707,1.29121511,3253.3,3253.1,0.81841]
[1736683780904,0.15586308,3253.2,3253.1,0.81841]
[1736683781139,1.29121511,3253.3,3253.1,0.81841]
[1736683781310,0.15595601,3253.2,3253.1,0.81841]
[1736683781513,3.0,3253.5,3253.1,0.81841]
[1736683781821,0.15595601,3253.4,3253.1,0.81841]
[1736683783742,6.60121511,3253.6,3253.1,0.81841]
[1736683783925,0.15630119,3253.3,3253.2,0.8184]
[1736683784092,6.60121511,3253.6,3253.2,0.8184]
[1736683784295,0.15630119,3253.5,3253.2,0.8184]
[1736683784730,0.15429128,3253.5,3253.2,0.8184]
[1736683785547,0.55,3253.7,3253.2,0.8184]
[1736683785729,0.15623419,3253.4,3253.2,0.8184]
[1736683785929,0.55,3253.7,3253.2,0.8184]
[1736683786252,0.15623419,3253.6,3253.2,0.8184]
[1736683787116,0.15623419,3253.6,3253.4,0.7675]
[1736683787317,1.29121511,3253.8,3253.3,0.7675]
[1736683787625,0.15623419,3253.7,3253.5,0.7675]
[1736683788836,0.15623419,3253.7,3253.6,0.79823171]
[1736683789013,1.29121511,3254.1,3253.7,2.91889]
[1736683789218,1.29121511,3254.1,3253.9,0.7675]
[1736683789618,1.29121511,3254.3,3253.9,0.7675]
[1736683790946,0.5575,3254.6,3253.9,0.7675]
[1736683792557,0.15681146,3254.5,3253.9,0.7675]
[1736683793002,0.15681146,3254.5,3254.1,0.7675]
[1736683793403,0.55,3254.7,3254.1,0.7675]
[1736683793682,0.15681146,3254.4,3254.1,0.7675]
[1736683794144,0.55,3254.8,3254.1,0.7675]
[1736683794550,0.55,3254.8,3254.3,0.7675]
[1736683794551,0.15681809,3254.7,3254.3,0.7675]
[1736683794847,0.55,3254.8,3254.3,0.7675]
[1736683795009,0.15681809,3254.6,3254.3,0.7675]
[1736683795209,0.55,3254.8,3254.3,0.7675]
[1736683795731,0.15681809,3254.7,3254.3,0.7675]
[1736683795940,0.55,3254.9,3254.3,0.7675]
[1736683796252,0.15681809,3254.8,3254.3,0.7675]
[1736683801422,0.0075,3254.7,3254.3,0.7675]
[1736683801589,0.5575,3254.7,3254.3,0.7675]
[1736683801799,0.55,3254.5,3254.3,0.7675]
[1736683802199,0.5575,3254.7,3254.3,0.7675]
[1736683802429,0.15685126,3254.4,3254.3,0.7675]
[1736683802613,0.5575,3254.7,3254.3,0.7675]
[1736683802813,0.15685126,3254.4,3254.3,0.7675]
[1736683803014,0.5575,3254.7,3254.3,0.7675]
[1736683803513,0.55,3254.5,3254.3,0.7675]
[1736683803879,0.15685126,3254.4,3254.3,0.7675]
[1736683804599,0.55,3254.9,3254.3,0.7675]
[1736683804799,0.15685126,3254.4,3254.3,0.7675]
[1736683804995,0.55,3254.9,3254.3,0.7675]
[1736683805597,2.70061,3254.9,3254.3,0.7675]
[1736683805801,0.15686453,3254.4,3254.3,0.7675]
[1736683806098,0.8253,3254.8,3254.3,0.7675]
[1736683806498,0.15686453,3254.7,3254.3,0.7675]
[1736683806827,2.70061,3254.9,3254.3,0.7675]
[1736683807124,2.91061,3254.9,3254.3,0.7675]
[1736683807424,0.15691759,3254.8,3254.3,0.7675]
[1736683810297,0.15691759,3254.8,3254.3,1.059355]
[1736683811025,0.15691759,3254.8,3254.3,0.7675]
[1736683816729,0.15691759,3254.8,3254.3,0.79822541]
[1736683817235,0.15691759,3254.8,3254.3,0.7675]
[1736683820643,3.13288759,3254.8,3254.3,0.7675]
[1736683822293,2.30758759,3254.8,3254.3,0.7675]
[1736683824560,0.28575876,3254.7,3254.3,0.7675]
[1736683824856,0.15705026,3254.6,3254.3,0.7675]
[1736683825270,2.15067,3254.8,3254.3,0.7675]
[1736683825414,0.15705026,3254.5,3254.3,0.7675]
[1736683825863,2.15067,3254.8,3254.3,0.7675]
[1736683826315,0.15705026,3254.7,3254.3,0.7675]
[1736683826516,2.15067,3254.8,3254.3,0.7675]
[1736683826709,0.15705026,3254.7,3254.3,0.7675]
[1736683827110,0.55,3254.9,3254.3,0.7675]
[1736683827310,0.15705026,3254.8,3254.3,0.7675]
[1736683832232,0.20498935,3254.8,3254.3,0.7675]
[1736683833369,1.49620446,3254.8,3254.3,0.7675]
[1736683834062,1.29121511,3254.7,3254.3,0.7675]
[1736683834745,0.20498936,3254.6,3254.3,0.7675]
[1736683837610,1.49620447,3254.6,3254.3,0.7675]
[1736683848124,1.49620447,3254.6,3254.5,0.8044]
[1736683848465,0.20498936,3254.6,3254.5,0.8044]
[1736683849316,0.20498936,3254.6,3254.1,0.8044]
[1736683849612,2.09091511,3254.8,3254.1,0.8044]
[1736683849783,0.20506229,3254.5,3254.1,0.8044]
[1736683849984,1.29121511,3254.7,3254.2,0.295556]
[1736683850195,0.20506229,3254.6,3254.1,0.8044]
[1736683851100,1.4962774,3254.6,3254.1,0.8044]
[1736683851618,0.20506229,3254.6,3254.1,0.8044]
[1736683852817,0.20506229,3254.6,3254.2,0.03072575]
[1736683854615,1.4962774,3254.6,3254.2,0.03072575]
[1736683855218,0.20506229,3254.6,3254.2,0.03072575]
[1736683856022,0.20506229,3254.6,3254.1,0.8044]
[1736683856173,0.20506229,3254.6,3254.1,1.099956]
[1736683856903,0.20506229,3254.6,3254.2,0.03072577]
[1736683857389,1.4962774,3254.6,3254.3,0.7918]
[1736683858221,0.20506229,3254.6,3254.3,0.7918]
[1736683863957,1.4962774,3254.6,3254.3,0.7918]
[1736683865032,0.20506229,3254.6,3254.3,0.7918]
[1736683867039,1.29121511,3254.8,3254.3,0.7918]
[1736683867181,0.20509546,3254.5,3254.3,0.7918]
[1736683867497,1.29121511,3254.8,3254.3,0.7918]
[1736683867699,0.20509546,3254.4,3254.3,0.7918]
[1736683867885,1.29121511,3254.8,3254.3,0.7918]
[1736683868087,0.20611709,3254.4,3254.3,0.7918]
[1736683868286,1.29121511,3254.8,3254.3,0.7918]
[1736683868485,0.20611709,3254.4,3254.3,0.7918]
[1736683868711,1.29121511,3254.8,3254.3,0.7918]
[1736683868897,0.20611709,3254.4,3254.3,0.7918]
[1736683869109,1.29121511,3254.8,3254.3,0.7918]
[1736683869310,0.20611709,3254.4,3254.3,0.7918]
[1736683869515,1.29121511,3254.8,3254.3,0.7918]
[1736683869832,1.29121511,3254.7,3254.3,0.7918]
[1736683870037,1.4973322,3254.7,3254.3,0.7918]
[1736683870206,0.20611709,3254.7,3254.3,0.7918]
[1736683870401,1.29121511,3254.8,3254.3,0.7918]
[1736683870607,0.20611709,3254.7,3254.3,0.7918]
[1736683870837,1.29121511,3254.8,3254.3,0.7918]
[1736683871150,0.20611709,3254.6,3254.3,0.7918]
[1736683871318,1.29121511,3254.8,3254.4,0.03072575]
[1736683871843,0.20630274,3254.7,3254.4,0.03072575]
[1736683872206,1.29121511,3254.9,3254.4,0.03072575]
[1736683872533,0.20627622,3254.8,3254.3,2.94279]
[1736683872733,0.20627622,3254.8,3254.4,0.03072327]
[1736683872903,0.20627622,3254.8,3254.4,0.3280746]
[1736683873141,0.20627622,3254.8,3254.4,2.4790046]
[1736683873332,0.20627622,3254.8,3254.5,0.7733]
[1736683874054,0.20635579,3254.7,3254.5,0.7733]
[1736683874422,1.29121511,3255.0,3254.5,0.7733]
[1736683874617,0.20635579,3254.9,3254.5,0.7733]
[1736683874804,0.20635579,3254.9,3254.6,0.32523046]
[1736683875519,0.20635579,3254.9,3254.6,0.35595339]
[1736683875904,0.20635579,3254.9,3254.7,0.7733]
[1736683876848,1.29121511,3255.1,3255.0,2.15053]
[1736683877048,1.29121511,3255.1,3255.0,2.92383]
[1736683877247,1.29121511,3255.1,3255.0,3.97135113]
[1736683877656,1.29121511,3255.4,3255.1,2.15045]
[1736683877820,1.29121511,3255.4,3255.2,0.7733]
[1736683878162,1.29121511,3255.4,3255.3,2.15033]
[1736683878618,1.29121511,3255.4,3255.3,2.92363]
[1736683878817,1.29121511,3255.4,3255.3,3.21906461]
[1736683879025,1.29121511,3256.0,3255.3,3.21906461]
[1736683879908,0.55,3256.1,3255.3,3.21906461]
[1736683880717,0.55,3256.2,3255.3,3.21906461]
[1736683880920,0.55,3256.2,3255.4,0.32190646]
[1736683883474,0.55,3256.2,3255.5,0.7733]
[1736683883617,0.20691259,3256.1,3255.5,0.7733]
[1736683884529,0.20691259,3256.1,3255.5,2.92348]
[1736683884855,0.7618,3256.3,3255.5,2.92348]
[1736683885062,0.20702526,3256.0,3255.6,0.32453865]
[1736683885265,0.7618,3256.3,3255.5,0.7733]
[1736683885562,0.20705839,3255.9,3255.5,0.7733]
[1736683885735,0.7618,3256.3,3255.5,0.7733]
[1736683885932,0.20705839,3255.8,3255.5,0.7733]
[1736683886134,0.7618,3256.3,3255.5,0.7733]
[1736683886463,0.7618,3256.3,3255.6,0.292355]
[1736683886763,0.20705839,3256.2,3255.6,0.292355]
[1736683887417,0.20705839,3256.2,3255.7,0.81981098]
[1736683887770,1.29121511,3256.8,3255.8,0.7891]
[1736683887966,1.29121511,3256.8,3255.9,0.03070635]
[1736683888266,0.20714453,3256.7,3256.0,0.7891]
[1736683888469,0.20714453,3256.7,3256.2,0.7891]
[1736683888635,0.20714453,3256.7,3256.4,0.7891]
[1736683888969,0.55,3257.1,3256.5,0.0307047]
[1736683889169,0.20835723,3256.6,3256.5,0.0307047]
[1736683889338,0.7665,3257.2,3256.5,0.32764617]
[1736683889737,0.20835723,3257.1,3256.5,0.32764617]
[1736683891067,0.55,3257.3,3256.5,0.32764617]
[1736683891272,0.20878113,3257.0,3256.5,0.32764617]
[1736683891428,0.7665,3257.4,3256.6,0.7891]
[1736683891769,0.20878113,3257.3,3256.7,0.35732741]
[1736683892365,0.55,3257.2,3256.6,0.7891]
[1736683892721,0.55,3257.3,3256.6,0.7891]